bitfinex/quotes_BTCUSD_20250813
["timestamp","ask_amount","ask_price","bid_price","bid_amount"]
[1755102019039,0.08272325,121530.0,121520.0,0.13581]
[1755102019388,0.08272325,121530.0,121520.0,0.59178524]
[1755102019599,0.08272325,121530.0,121520.0,0.46102524]
[1755102019750,0.08272325,121530.0,121520.0,0.13581]
[1755102019961,0.08272325,121530.0,121520.0,0.59178524]
[1755102020146,0.08272325,121530.0,121520.0,0.13589]
[1755102020554,0.08272325,121530.0,121520.0,0.59186524]
[1755102021329,0.08272325,121530.0,121520.0,0.00505]
[1755102021540,0.08272325,121530.0,121520.0,0.43565]
[1755102021769,0.08272325,121530.0,121520.0,0.89162524]
[1755102022434,0.08272325,121530.0,121520.0,0.33309]
[1755102022694,0.03588482,121550.0,121520.0,0.33309]
[1755102022695,0.0184358,121550.0,121520.0,0.33309]
[1755102023025,0.08272325,121540.0,121520.0,0.33309]
[1755102023218,0.08272325,121540.0,121530.0,0.45597524]
[1755102023427,0.08272325,121540.0,121520.0,0.13084]
[1755102023628,0.08272325,121540.0,121530.0,0.45597524]
[1755102023838,0.08272325,121540.0,121510.0,0.00973774]
[1755102024044,0.08272325,121540.0,121520.0,0.13136]
[1755102024622,0.08272325,121540.0,121530.0,0.45597524]
[1755102024826,0.08272325,121540.0,121530.0,0.58737524]
[1755102025030,0.08272325,121540.0,121530.0,0.45597524]
[1755102025324,0.10017227,121540.0,121530.0,0.00505]
[1755102025773,0.10017227,121540.0,121530.0,0.59310524]
[1755102025926,0.10017227,121540.0,121530.0,0.13769]
[1755102026367,0.0184358,121550.0,121530.0,0.13769]
[1755102026678,0.10115905,121550.0,121540.0,0.00294]
[1755102026901,0.10115905,121550.0,121540.0,0.13487]
[1755102026902,0.57660331,121550.0,121540.0,0.13487]
[1755102027104,0.57660331,121550.0,121530.0,0.00294]
[1755102027311,0.10017227,121540.0,121520.0,0.00294]
[1755102027453,0.55614751,121540.0,121530.0,0.13809]
[1755102027862,0.55614751,121540.0,121530.0,0.13823674]
[1755102028472,0.10017227,121540.0,121530.0,0.13823674]
[1755102028928,0.55614751,121540.0,121530.0,0.13823674]
[1755102029253,0.10017227,121540.0,121530.0,0.13823674]
[1755102029460,0.55614751,121540.0,121530.0,0.13823674]
[1755102030200,0.55825751,121540.0,121530.0,0.00225674]
[1755102030405,1.38145459,121540.0,121530.0,0.00014674]
[1755102030636,0.98132935,121540.0,121530.0,0.00014674]
[1755102030853,0.98208751,121540.0,121530.0,0.13330674]
[1755102031055,0.95708751,121540.0,121530.0,0.13330674]
[1755102031256,0.98208751,121540.0,121530.0,0.00014674]
[1755102031490,0.98208751,121540.0,121530.0,0.43302674]
[1755102031698,0.90123751,121540.0,121530.0,0.43302674]
[1755102032024,0.44228227,121540.0,121530.0,0.43302674]
[1755102032240,0.10017227,121540.0,121530.0,0.20238674]
[1755102032449,0.08272325,121540.0,121530.0,0.33562674]
[1755102032653,0.53869849,121540.0,121530.0,0.20238674]
[1755102032826,0.10017227,121540.0,121530.0,0.33566674]
[1755102033278,0.10017227,121540.0,121530.0,0.00522674]
[1755102033455,0.0184358,121550.0,121530.0,0.14056384]
[1755102033683,0.55713429,121550.0,121540.0,0.13344]
[1755102033865,0.55713429,121550.0,121540.0,0.13852]
[1755102034091,0.11860807,121550.0,121540.0,0.13852]
[1755102034319,0.11860807,121550.0,121540.0,0.00508]
[1755102034534,0.57669331,121550.0,121540.0,0.13344]
[1755102034741,0.12071807,121550.0,121540.0,0.13344]
[1755102034912,0.57669331,121550.0,121540.0,0.13344]
[1755102035334,0.12071807,121550.0,121530.0,0.00310674]
[1755102035564,0.12071807,121550.0,121540.0,0.13348]
[1755102035967,0.12071807,121550.0,121540.0,0.13572]
[1755102036176,0.11860807,121550.0,121540.0,0.13868]
[1755102036335,0.11860807,121550.0,121540.0,0.00508]
[1755102036548,0.57458331,121550.0,121540.0,0.13868]
[1755102036751,0.11860807,121550.0,121540.0,0.13872]
[1755102036918,0.03588482,121550.0,121540.0,0.13872]
[1755102037318,0.03588482,121550.0,121540.0,0.00508]
[1755102037517,0.03588482,121550.0,121540.0,0.13876]
[1755102037959,0.03588482,121550.0,121540.0,0.50508]
[1755102038165,0.03588482,121550.0,121540.0,0.13884]
[1755102038737,0.03588482,121550.0,121540.0,0.14089693]
[1755102039170,0.03588482,121550.0,121540.0,0.13884]
[1755102039339,0.49008628,121550.0,121540.0,0.13884]
[1755102039550,0.03588482,121550.0,121540.0,0.00508]
[1755102039748,0.03588482,121550.0,121540.0,0.13884]
[1755102039959,0.03588482,121550.0,121540.0,0.00508]
[1755102040404,0.03588482,121550.0,121540.0,0.13892]
[1755102040646,0.49008628,121550.0,121540.0,0.13892]
[1755102041084,0.03588482,121550.0,121540.0,0.13892]
[1755102041307,0.49008628,121550.0,121540.0,0.14176]
[1755102041541,0.49008628,121550.0,121540.0,0.44144]
[1755102041911,0.49008628,121550.0,121540.0,0.49957947]
[1755102042149,0.49008628,121550.0,121540.0,0.19928]
[1755102042387,0.49219628,121550.0,121540.0,0.19928]
[1755102042629,0.49008628,121550.0,121540.0,0.00212]
[1755102043106,0.03588482,121550.0,121540.0,0.1394]
[1755102043603,0.03588482,121550.0,121540.0,0.00212]
[1755102043843,0.49008628,121550.0,121540.0,0.00212]
[1755102044081,0.49008628,121550.0,121540.0,0.13956]
[1755102044332,0.49517628,121550.0,121540.0,0.13956]
[1755102044562,0.04097482,121550.0,121520.0,0.00256]
[1755102044784,0.01744902,121530.0,121520.0,0.00014679]
[1755102045022,0.01744902,121530.0,121520.0,0.84226679]
[1755102045254,0.47376048,121530.0,121520.0,0.00226679]
[1755102045492,0.01744902,121510.0,121490.0,0.03481356]
[1755102045777,0.01744902,121510.0,121500.0,0.63856684]
[1755102046014,0.01744902,121510.0,121500.0,0.13856684]
[1755102046257,0.01744902,121510.0,121500.0,0.63856684]
[1755102046684,0.01744902,121510.0,121500.0,0.50084684]
[1755102046907,0.01744902,121510.0,121500.0,0.63852684]
[1755102047118,0.47674048,121510.0,121500.0,0.00084684]
[1755102047291,0.52267256,121510.0,121500.0,0.00014684]
[1755102047492,0.02253902,121510.0,121500.0,0.00014684]
[1755102047692,0.47674048,121510.0,121500.0,0.34014684]
[1755102048117,0.02253902,121510.0,121500.0,0.47770684]
[1755102048574,0.02253902,121510.0,121500.0,0.34014684]
[1755102048726,0.02253902,121510.0,121500.0,0.34084684]
[1755102048930,0.02253902,121510.0,121500.0,0.47848684]
[1755102049136,0.02042902,121510.0,121500.0,0.47848684]
[1755102049468,0.01744902,121510.0,121500.0,0.47848684]
[1755102050630,0.01744902,121510.0,121500.0,0.47892684]
[1755102050830,0.003,121520.0,121500.0,0.47892684]
[1755102051046,0.003,121520.0,121510.0,0.14175488]
[1755102051238,0.003,121520.0,121510.0,0.00481488]
[1755102051239,0.02044902,121520.0,121510.0,0.00481488]
[1755102051427,0.02044902,121520.0,121510.0,0.51478246]
[1755102051628,0.02044902,121520.0,121510.0,0.51122758]
[1755102051831,0.02044902,121520.0,121510.0,0.99612358]
[1755102052041,0.02044902,121520.0,121510.0,1.061276]
[1755102052445,0.02044902,121520.0,121510.0,0.761596]
[1755102052658,0.003,121520.0,121510.0,0.623796]
[1755102052875,0.003,121520.0,121510.0,0.84499925]
[1755102053274,0.003,121520.0,121510.0,0.84559925]
[1755102053539,0.003,121520.0,121510.0,0.70651925]
[1755102053742,0.003,121520.0,121510.0,0.80814481]
[1755102054165,0.003,121520.0,121510.0,0.94754481]
[1755102055014,0.003,121520.0,121510.0,0.84619925]
[1755102055217,0.003,121520.0,121510.0,0.70651925]
[1755102055423,0.00091738,121520.0,121510.0,0.94790481]
[1755102055796,0.00091738,121520.0,121510.0,0.70651925]
[1755102056000,0.00091738,121520.0,121510.0,0.99165056]
[1755102056412,0.00091738,121520.0,121510.0,0.99193056]
[1755102057016,0.00091738,121520.0,121510.0,0.99209056]
[1755102057491,0.00091738,121520.0,121510.0,0.84727925]
[1755102058623,0.00091738,121520.0,121510.0,0.84771925]
[1755102058828,0.00091738,121520.0,121510.0,0.84775925]
[1755102059743,0.00091738,121520.0,121510.0,0.84771925]
[1755102059954,0.00091738,121520.0,121510.0,0.84775925]
[1755102060151,0.00091738,121520.0,121510.0,0.70651925]
[1755102060357,0.00091738,121520.0,121510.0,0.70607925]
[1755102060573,0.00091738,121520.0,121510.0,0.84763925]
[1755102060849,0.00091738,121520.0,121510.0,0.70651925]
[1755102061058,0.00091738,121520.0,121510.0,0.84827925]
[1755102061261,0.00091738,121520.0,121510.0,0.84851925]
[1755102061464,0.00091738,121520.0,121510.0,1.25027925]
[1755102062454,0.00091738,121520.0,121510.0,1.00575925]
[1755102062599,0.00091738,121520.0,121510.0,0.90367925]
[1755102062809,0.00091738,121520.0,121510.0,0.70651925]
[1755102063019,0.00091738,121520.0,121510.0,0.85031925]
[1755102063212,0.00091738,121520.0,121510.0,0.85055925]
[1755102063406,0.00028099,121520.0,121510.0,0.70651925]
[1755102063593,0.00028099,121520.0,121510.0,0.87242425]
[1755102064001,0.00028099,121520.0,121510.0,0.87266425]
[1755102064411,0.00028099,121520.0,121510.0,0.72794425]
[1755102064833,0.00028099,121520.0,121510.0,0.87274425]
[1755102065246,0.00022468,121520.0,121510.0,0.87274425]
[1755102065478,0.00022468,121520.0,121510.0,0.72794425]
[1755102065681,0.00022468,121520.0,121510.0,0.87323556]
[1755102065884,0.00022468,121520.0,121510.0,1.01815556]
[1755102066498,0.00022468,121520.0,121510.0,0.87323556]
[1755102066915,0.00022468,121520.0,121510.0,1.01827556]
[1755102067558,0.00022468,121520.0,121510.0,0.87323556]
[1755102067785,0.00022468,121520.0,121510.0,0.87279556]
[1755102068000,0.00022468,121520.0,121510.0,1.01795556]
[1755102068425,0.00022468,121520.0,121510.0,0.87279556]
[1755102068834,0.00534468,121520.0,121510.0,1.01765556]
[1755102069033,0.00534468,121520.0,121510.0,0.85067056]
[1755102069602,0.00534468,121520.0,121510.0,0.99631056]
[1755102070166,0.00534468,121520.0,121510.0,0.99683056]
[1755102070576,0.00534468,121520.0,121510.0,0.91410731]
[1755102070902,0.00534468,121520.0,121510.0,0.73569331]
[1755102071330,0.00160777,121520.0,121510.0,0.58953331]
[1755102071540,0.00160777,121520.0,121510.0,1.03537331]
[1755102071745,0.00160777,121520.0,121510.0,0.68241131]
[1755102071994,0.01905679,121520.0,121510.0,0.34241131]
[1755102072194,0.07095679,121520.0,121510.0,0.34336]
[1755102072401,0.07095679,121520.0,121510.0,0.14624]
[1755102072607,0.07095679,121520.0,121510.0,0.5]
[1755102072855,0.07095679,121520.0,121510.0,0.10156845]
[1755102073086,0.07095679,121520.0,121510.0,1.08844845]
[1755102073320,0.07095679,121520.0,121510.0,0.44156845]
[1755102073534,0.07394679,121520.0,121510.0,0.44156845]
[1755102073941,0.07394679,121520.0,121510.0,0.58856845]
[1755102074561,0.07394679,121520.0,121510.0,0.10156845]
[1755102074764,0.15667004,121520.0,121510.0,0.24912845]
[1755102075170,0.15667004,121520.0,121510.0,0.10156845]
[1755102075380,0.15667004,121520.0,121510.0,0.24908845]
[1755102075584,0.15667004,121520.0,121510.0,0.10156845]
[1755102075810,0.60021453,121520.0,121510.0,0.10156845]
[1755102076082,0.15667004,121520.0,121510.0,0.24968845]
[1755102076280,0.15667004,121520.0,121510.0,0.10156845]
[1755102076485,0.15667004,121520.0,121510.0,0.24976845]
[1755102076678,0.15667004,121520.0,121510.0,0.10156845]
[1755102077106,0.61115429,121520.0,121510.0,0.25004845]
[1755102077319,0.62682129,121520.0,121510.0,0.25004845]
[1755102077529,0.17233704,121520.0,121510.0,0.10156845]
[1755102077743,0.62682129,121520.0,121510.0,0.10156845]
[1755102077955,0.17233704,121520.0,121510.0,0.10156845]
[1755102078162,0.15667004,121520.0,121510.0,0.25028845]
[1755102078377,0.15667004,121520.0,121510.0,0.10156845]
[1755102078843,0.61115429,121520.0,121510.0,0.25052845]
[1755102079055,0.15667004,121520.0,121510.0,0.10156845]
[1755102079275,0.61115429,121520.0,121510.0,0.10156845]
[1755102079540,1.08130554,121520.0,121510.0,0.10156845]
[1755102079826,1.10630554,121520.0,121510.0,0.1494]
[1755102080068,1.10630554,121520.0,121510.0,0.14944]
[1755102080300,1.10630554,121520.0,121500.0,0.01964684]
[1755102080301,0.01744902,121510.0,121500.0,0.01964684]
[1755102080548,0.55678652,121510.0,121500.0,0.16908684]
[1755102080795,0.15719227,121510.0,121500.0,0.01964684]
[1755102081034,0.15719227,121510.0,121500.0,0.16924684]
[1755102081276,0.61167652,121510.0,121500.0,0.16924684]
[1755102081518,0.61167652,121510.0,121500.0,0.57049529]
[1755102081756,0.61167652,121510.0,121500.0,0.31932684]
[1755102081757,0.10529227,121510.0,121500.0,0.31932684]
[1755102081996,0.55977652,121510.0,121500.0,0.31932684]
[1755102082238,0.10529227,121510.0,121500.0,0.46920684]
[1755102082491,0.10529227,121510.0,121500.0,0.36664684]
[1755102082943,0.55977652,121510.0,121500.0,0.16960684]
[1755102083169,0.10529227,121510.0,121500.0,0.16960684]
[1755102083396,0.55977652,121510.0,121500.0,0.16960684]
[1755102083653,0.10529227,121510.0,121500.0,0.16960684]
[1755102083863,0.10529227,121510.0,121500.0,0.01964684]
[1755102084073,0.10529227,121510.0,121500.0,0.16956684]
[1755102084497,0.55977652,121510.0,121500.0,0.16956684]
[1755102084919,0.13768184,121510.0,121500.0,0.01964684]
[1755102085099,0.55977652,121510.0,121500.0,0.16952684]
[1755102085664,0.10529227,121510.0,121500.0,0.16952684]
[1755102085872,0.10529227,121510.0,121500.0,0.01964684]
[1755102086115,0.10529227,121510.0,121500.0,0.16968684]
[1755102086345,0.55977652,121510.0,121500.0,0.16968684]
[1755102086735,0.55977652,121510.0,121500.0,0.01964684]
[1755102086948,0.01957902,121510.0,121500.0,0.17191684]
[1755102087169,0.48213425,121540.0,121500.0,0.67508684]
[1755102087404,0.5372075,121540.0,121510.0,0.10159278]
[1755102087606,0.00299,121530.0,121520.0,0.15229727]
[1755102087806,0.02256902,121530.0,121520.0,0.25389005]
[1755102088029,0.00213,121530.0,121520.0,0.25382278]
[1755102088233,0.08571325,121540.0,121520.0,0.25382278]
[1755102088437,0.00299,121530.0,121520.0,0.10159278]
[1755102088640,0.00512,121530.0,121520.0,0.25175278]
[1755102088796,0.02256902,121530.0,121520.0,0.25175278]
[1755102089202,0.02256902,121530.0,121520.0,0.25374278]
[1755102090096,0.01744902,121530.0,121520.0,0.25374278]
[1755102090279,0.01744902,121530.0,121520.0,0.27110365]
[1755102091627,0.01744902,121530.0,121520.0,0.57082365]
[1755102092970,0.01744902,121530.0,121520.0,0.57062365]
[1755102093826,0.01744902,121530.0,121520.0,0.46794365]
[1755102094959,0.01948902,121530.0,121520.0,0.46794365]
[1755102096180,0.01744902,121530.0,121520.0,0.27074365]
[1755102096325,0.01744902,121530.0,121520.0,0.27326365]
[1755102096532,0.0214458,121550.0,121520.0,0.27322365]
[1755102096727,0.0214458,121550.0,121530.0,0.0041142]
[1755102097063,0.03889482,121550.0,121540.0,0.14932]
[1755102097269,0.04093482,121550.0,121540.0,0.14932]
[1755102098319,0.04093482,121550.0,121540.0,0.14946684]
[1755102098789,0.04093482,121550.0,121540.0,0.00014684]
[1755102098996,0.04093482,121550.0,121540.0,0.14918684]
[1755102099195,0.04093482,121550.0,121540.0,0.14910684]
[1755102100288,0.04093482,121550.0,121540.0,0.14894684]
[1755102100494,0.0234858,121550.0,121540.0,0.14894684]
[1755102100702,0.04093482,121550.0,121540.0,0.14894684]
[1755102101672,0.04093482,121550.0,121540.0,0.44862684]
[1755102102104,0.04093482,121550.0,121540.0,0.45061684]
[1755102103779,0.56735249,121550.0,121540.0,0.29982684]
[1755102103990,0.12365807,121550.0,121540.0,0.34546684]
[1755102104130,0.56735249,121550.0,121540.0,0.34546684]
[1755102104344,0.62438774,121550.0,121540.0,0.34546684]
[1755102104780,0.56735249,121550.0,121540.0,0.34546684]
[1755102105164,0.12365807,121550.0,121540.0,0.34546684]
[1755102106254,0.12365807,121550.0,121540.0,0.14830684]
[1755102108043,0.12365807,121550.0,121540.0,0.00014684]
[1755102108284,0.12365807,121550.0,121540.0,0.15021684]
[1755102108476,0.01744902,121540.0,121510.0,0.33971345]
[1755102108591,0.01744902,121540.0,121520.0,0.36863927]
[1755102108832,0.01744902,121540.0,121510.0,0.1497179]
[1755102109042,0.01744902,121540.0,121520.0,0.96764387]
[1755102109272,0.01744902,121540.0,121510.0,0.1497179]
[1755102109489,0.01744902,121540.0,121520.0,1.20994287]
[1755102109703,0.01744902,121540.0,121530.0,0.14748]
[1755102110171,0.01744902,121540.0,121530.0,0.64748]
[1755102110414,0.01744902,121540.0,121530.0,0.5]
[1755102110631,0.01744902,121540.0,121520.0,1.358047]
[1755102110857,0.01744902,121540.0,121530.0,0.00308553]
[1755102111082,0.01744902,121540.0,121530.0,2.00403653]
[1755102111296,0.01744902,121540.0,121530.0,1.789503]
[1755102111531,0.01744902,121540.0,121530.0,2.236383]
[1755102111954,0.01744902,121540.0,121530.0,2.236343]
[1755102112181,0.01744902,121540.0,121530.0,2.120622]
[1755102112395,0.01744902,121540.0,121530.0,2.099012]
[1755102113255,0.01744902,121540.0,121530.0,1.754692]
[1755102113466,0.01744902,121540.0,121530.0,1.901852]
[1755102113684,0.01744902,121540.0,121530.0,1.901772]
[1755102114200,0.01744902,121540.0,121530.0,1.754692]
[1755102114426,0.01744902,121540.0,121530.0,1.901692]
[1755102115061,0.01744902,121540.0,121530.0,1.901652]
[1755102115933,0.01744902,121540.0,121530.0,1.754692]
[1755102116138,0.01744902,121540.0,121530.0,1.901652]
[1755102117965,0.01744902,121540.0,121530.0,1.683605]
[1755102118162,0.01744902,121540.0,121530.0,1.663435]
[1755102118868,0.01744902,121540.0,121530.0,1.552325]
[1755102119279,0.02249902,121540.0,121510.0,0.22803699]
[1755102119466,0.02045902,121530.0,121520.0,0.14668]
[1755102119670,0.02259902,121530.0,121520.0,0.14664]
[1755102120138,0.02259902,121530.0,121520.0,0.5]
[1755102120379,0.01744902,121530.0,121520.0,0.64664]
[1755102120626,0.01744902,121530.0,121520.0,0.6466]
[1755102121536,0.01744902,121530.0,121520.0,0.79968]
[1755102121748,0.02040902,121530.0,121520.0,0.34392]
[1755102121972,0.01744902,121530.0,121520.0,0.520142]
[1755102122385,0.01744902,121530.0,121520.0,0.666862]
[1755102122820,0.01744902,121530.0,121520.0,0.520142]
[1755102123047,0.01744902,121530.0,121520.0,0.666902]
[1755102123727,0.01744902,121530.0,121520.0,0.667182]
[1755102123953,0.02040902,121530.0,121520.0,0.450318]
[1755102124174,0.02040902,121530.0,121520.0,0.597358]
[1755102124403,0.02254902,121530.0,121520.0,0.48688]
[1755102124596,0.02254902,121530.0,121520.0,0.34]
[1755102124804,0.02254902,121530.0,121520.0,0.48688]
[1755102125674,0.02254902,121530.0,121520.0,0.34]
[1755102126098,0.02254902,121530.0,121520.0,0.4868]
[1755102126312,0.02254902,121530.0,121520.0,0.34]
[1755102126517,0.02254902,121530.0,121520.0,0.4868]
[1755102127338,0.02254902,121530.0,121520.0,0.4888]
[1755102127539,0.02254902,121530.0,121520.0,0.342]
[1755102127759,0.02460624,121530.0,121520.0,0.342]
[1755102127949,0.02254902,121530.0,121520.0,0.48868]
[1755102130239,0.02254902,121530.0,121520.0,0.14868]
[1755102130428,0.10527227,121530.0,121520.0,0.002]
[1755102130629,0.10732949,121530.0,121520.0,0.14832]
[1755102131129,0.10527227,121530.0,121520.0,0.14832]
[1755102131572,0.10527227,121530.0,121520.0,0.30168]
[1755102131785,0.67185112,121530.0,121520.0,0.44796]
[1755102132017,0.15965227,121530.0,121520.0,0.30168]
[1755102132230,0.15965227,121530.0,121520.0,0.44812]
[1755102132448,0.15965227,121530.0,121490.0,0.003]
[1755102132449,0.01744902,121520.0,121500.0,0.0140098]
[1755102132667,0.01744902,121520.0,121490.0,0.00348891]
[1755102132668,0.01744902,121500.0,121490.0,0.00348891]
[1755102132918,0.01958902,121500.0,121490.0,0.00348891]
[1755102133131,0.02254902,121500.0,121490.0,0.00348891]
[1755102133556,0.02254902,121500.0,121490.0,0.4579742]
[1755102133768,0.02254902,121500.0,121490.0,0.14988891]
[1755102133971,0.02254902,121500.0,121490.0,0.6043742]
[1755102134534,0.02254902,121500.0,121490.0,0.48988891]
[1755102135352,0.02254902,121500.0,121490.0,0.9443742]
[1755102135604,0.02254902,121500.0,121490.0,0.7979742]
[1755102135770,0.02254902,121500.0,121490.0,0.34348891]
[1755102135949,0.02254902,121500.0,121490.0,0.9440542]
[1755102136160,0.02254902,121500.0,121490.0,0.00348891]
[1755102136512,0.15503292,121500.0,121490.0,0.14956891]
[1755102136777,0.10732949,121500.0,121490.0,0.14956891]
[1755102137594,0.10732949,121500.0,121490.0,0.00348891]
[1755102137722,0.10732949,121500.0,121490.0,0.14956891]
[1755102137924,0.10732949,121500.0,121490.0,0.00348891]
[1755102138124,0.10732949,121500.0,121490.0,0.14948891]
[1755102138938,0.10732949,121500.0,121490.0,0.00348891]
[1755102138939,0.61619478,121500.0,121490.0,0.00348891]
[1755102139159,0.61413756,121500.0,121490.0,0.14948891]
[1755102139609,0.15965227,121500.0,121490.0,0.14948891]
[1755102139783,0.61413756,121500.0,121490.0,0.14948891]
[1755102140589,0.15965227,121500.0,121490.0,0.14948891]
[1755102140794,0.16170949,121500.0,121490.0,0.14948891]
[1755102141177,0.61619478,121500.0,121490.0,0.14948891]
[1755102141395,0.68068655,121500.0,121490.0,0.14948891]
[1755102141599,0.68068655,121500.0,121490.0,0.44920891]
[1755102141600,0.56967956,121500.0,121490.0,0.44920891]
[1755102141805,0.11733427,121500.0,121490.0,0.44920891]
[1755102142014,0.57387678,121500.0,121490.0,0.44920891]
[1755102142175,0.57181956,121500.0,121490.0,0.44920891]
[1755102142582,0.11733427,121500.0,121490.0,0.44920891]
[1755102142778,0.11939149,121500.0,121490.0,0.34668891]
[1755102143042,0.11939149,121500.0,121490.0,0.8011742]
[1755102143210,0.11939149,121500.0,121490.0,0.34668891]
[1755102143470,0.11939149,121500.0,121490.0,0.34624891]
[1755102143597,0.13980051,121500.0,121490.0,0.14904891]
[1755102143801,0.13980051,121500.0,121490.0,0.6035342]
[1755102144842,0.13980051,121500.0,121490.0,0.4579742]
[1755102145042,0.08336329,121500.0,121490.0,0.4579742]
[1755102145254,0.05974576,121500.0,121490.0,0.6054642]
[1755102145408,0.05974576,121500.0,121490.0,0.6087142]
[1755102145614,0.05974576,121500.0,121490.0,0.6054642]
[1755102145927,0.07719478,121500.0,121490.0,0.6054642]
[1755102146331,0.07933478,121500.0,121490.0,0.4600642]
[1755102146533,0.08229478,121500.0,121490.0,0.00348891]
[1755102146738,0.08229478,121500.0,121490.0,0.6033342]
[1755102147197,0.08229478,121500.0,121490.0,0.4579742]
[1755102147414,0.08229478,121500.0,121490.0,0.6031742]
[1755102148080,0.08229478,121500.0,121490.0,0.14868891]
[1755102148308,0.08229478,121500.0,121490.0,0.6031742]
[1755102149461,0.08229478,121500.0,121490.0,0.14868891]
[1755102149882,0.08229478,121500.0,121490.0,0.6031742]
[1755102150093,0.08229478,121500.0,121490.0,0.14868891]
[1755102150306,0.09299076,121500.0,121490.0,0.6031742]
[1755102150482,0.08229478,121500.0,121490.0,0.6031742]
[1755102150923,0.06484576,121500.0,121490.0,0.6031742]
[1755102151132,0.084352,121500.0,121490.0,0.6031742]
[1755102151514,0.084352,121500.0,121490.0,0.9029742]
[1755102154267,0.084352,121500.0,121490.0,0.7997742]
[1755102154719,0.35045372,121500.0,121490.0,0.7997742]
[1755102154935,0.3483965,121500.0,121490.0,0.6025342]
[1755102155614,0.3483965,121500.0,121490.0,0.14804891]
[1755102155829,0.3483965,121500.0,121490.0,0.6025342]
[1755102156264,0.3483965,121500.0,121490.0,0.14804891]
[1755102156489,0.3483965,121500.0,121490.0,0.6025742]
[1755102156710,0.3483965,121500.0,121490.0,0.14808891]
[1755102156921,0.38820265,121500.0,121490.0,0.6025742]
[1755102157123,0.3483965,121500.0,121490.0,0.6025742]
[1755102157341,0.3483965,121500.0,121490.0,0.14808891]
[1755102157549,0.3483965,121500.0,121490.0,0.6025742]
[1755102157861,0.3483965,121500.0,121490.0,0.6024942]
[1755102158494,0.3483965,121500.0,121490.0,0.4579742]
[1755102158703,0.3483965,121500.0,121490.0,0.6023742]
[1755102159468,0.3483965,121500.0,121490.0,0.14788891]
[1755102159653,0.3483965,121500.0,121490.0,0.6023742]
[1755102159848,0.3483965,121500.0,121490.0,0.4579742]
[1755102160062,0.3454365,121500.0,121490.0,0.6043042]
[1755102160681,0.3432965,121500.0,121490.0,0.6071042]
[1755102160901,0.3432965,121500.0,121490.0,0.4630642]
[1755102161103,0.3432965,121500.0,121490.0,0.6071042]
[1755102161510,0.3432965,121500.0,121490.0,0.9069042]
[1755102161719,0.3432965,121500.0,121490.0,0.7628642]
[1755102161923,0.3432965,121500.0,121490.0,0.9070642]
[1755102162138,0.3432965,121500.0,121490.0,0.7598242]
[1755102162343,0.3432965,121500.0,121490.0,0.9069842]
[1755102162760,0.3432965,121500.0,121490.0,0.6603042]
[1755102163006,0.3432965,121500.0,121490.0,0.8043842]
[1755102163265,0.3432965,121500.0,121490.0,0.8043042]
[1755102163485,0.3432965,121500.0,121490.0,0.6070642]
[1755102163700,0.3432965,121500.0,121490.0,0.4630642]
[1755102163940,0.3432965,121500.0,121490.0,0.6071842]
[1755102164159,0.28355074,121500.0,121490.0,0.4630642]
[1755102164372,0.26610172,121500.0,121490.0,0.6071842]
[1755102164953,0.26610172,121500.0,121490.0,0.9471042]
[1755102165156,0.28355074,121500.0,121490.0,0.9471042]
[1755102165564,0.28355074,121500.0,121490.0,0.49261891]
[1755102165904,0.28355074,121500.0,121490.0,0.9471042]
[1755102166525,0.01744902,121500.0,121490.0,0.9471042]
[1755102168008,0.01744902,121500.0,121490.0,0.8030642]
[1755102168214,0.01744902,121500.0,121490.0,0.9468642]
[1755102169227,0.01744902,121500.0,121490.0,0.9465442]
[1755102170529,0.01744902,121500.0,121490.0,1.28281489]
[1755102170727,0.01744902,121500.0,121490.0,1.44809937]
[1755102171696,0.01744902,121500.0,121490.0,1.60437937]
[1755102171839,0.01744902,121500.0,121490.0,1.29349408]
[1755102172044,0.01744902,121500.0,121490.0,1.19093408]
[1755102172239,0.01744902,121500.0,121490.0,0.39560879]
[1755102172441,0.01744902,121500.0,121490.0,0.8283296]
[1755102172644,0.01744902,121500.0,121490.0,0.9718096]
[1755102173052,0.01744902,121500.0,121490.0,0.9465442]
[1755102173425,0.01744902,121500.0,121490.0,1.40102949]
[1755102174042,0.01744902,121500.0,121490.0,1.25754949]
[1755102174244,0.01744902,121500.0,121490.0,1.40102949]
[1755102177216,0.01744902,121500.0,121490.0,0.49205891]
[1755102177437,0.01744902,121500.0,121490.0,1.40102949]
[1755102177596,0.01744902,121500.0,121490.0,0.34857891]
[1755102177804,0.01744902,121500.0,121490.0,1.28220749]
[1755102177990,0.01744902,121500.0,121490.0,1.42500749]
[1755102180035,0.01744902,121500.0,121490.0,1.28220749]
[1755102180243,0.01744902,121500.0,121490.0,1.42472749]
[1755102181350,0.01744902,121500.0,121490.0,0.84816278]
[1755102181351,0.02268902,121500.0,121490.0,0.84816278]
[1755102181551,0.02268902,121500.0,121490.0,1.12322478]
[1755102181766,0.02268902,121500.0,121490.0,1.26554478]
[1755102181986,0.01744902,121500.0,121490.0,1.27058478]
[1755102182171,0.01744902,121500.0,121490.0,1.16505478]
[1755102182743,0.01744902,121500.0,121490.0,1.18971478]
[1755102182953,0.00319,121530.0,121500.0,0.34]
[1755102183170,0.02063902,121520.0,121510.0,0.14224]
[1755102183385,0.02268902,121520.0,121510.0,0.14429744]
[1755102183589,0.02268902,121520.0,121510.0,0.14224]
[1755102184202,0.02268902,121520.0,121510.0,0.59672529]
[1755102184394,0.02268902,121520.0,121510.0,1.05121058]
[1755102184808,0.01949902,121520.0,121510.0,1.05328058]
[1755102185030,0.08847351,121550.0,121510.0,0.91763313]
[1755102185240,0.08847351,121550.0,121540.0,0.45448529]
[1755102185448,0.08733351,121550.0,121540.0,0.59680529]
[1755102185869,0.10797253,121550.0,121540.0,0.14232]
[1755102186105,0.01744902,121540.0,121520.0,0.45448529]
[1755102186288,0.10222949,121540.0,121530.0,0.59672529]
[1755102186506,0.01949902,121540.0,121530.0,0.45655529]
[1755102186703,0.01744902,121540.0,121530.0,0.45655529]
[1755102186933,0.01744902,121540.0,121530.0,0.59863529]
[1755102187152,0.01949902,121540.0,121530.0,0.00207]
[1755102187349,0.01949902,121540.0,121530.0,0.59863529]
[1755102187753,0.01949902,121540.0,121530.0,0.59859529]
[1755102188115,0.01744902,121540.0,121530.0,0.45655529]
[1755102188446,0.01744902,121540.0,121530.0,0.59851529]
[1755102188646,0.01744902,121540.0,121530.0,0.45655529]
[1755102188882,0.01744902,121540.0,121530.0,0.59851529]
[1755102189591,0.01744902,121540.0,121530.0,0.487]
[1755102189843,0.01744902,121540.0,121530.0,0.79952529]
[1755102190046,0.01744902,121540.0,121530.0,0.94148529]
[1755102190902,0.0184358,121550.0,121530.0,1.40491028]
[1755102191117,0.0184358,121550.0,121540.0,0.91205569]
[1755102191331,0.03588482,121550.0,121540.0,1.05593058]
[1755102191542,0.03588482,121550.0,121540.0,1.69553058]
[1755102191751,0.0184358,121550.0,121540.0,1.69553058]
[1755102191958,0.03588482,121550.0,121540.0,1.69553058]